[Event "British Rapidplay Championship 2023"]
[Site "Mercure Bradford, Bankfield Hotel"]
[Date "2023.04.15"]
[Round "3.3"]
[White "Surtees, Mike J"]
[Black "Wells, Peter K"]
[Result "1/2-1/2"]
[TimeControl "15 minutes plus 10 seconds per move"]
[WhiteElo "2111"]
[BlackElo "2466"]

1. c3 {[%clk 00:15:18]} {[%emt 00:00:02]} d5 {[%clk 00:14:44]} {[%emt
00:00:37]} 2. f4 {[%clk 00:15:13]} {[%emt 00:00:15]} c5 {[%clk 00:13:36]}
{[%emt 00:01:18]} 3. Nf3 {[%clk 00:15:16]} {[%emt 00:00:07]} Nc6 {[%clk
00:13:37]} {[%emt 00:00:09]} 4. d3 {[%clk 00:15:20]} {[%emt 00:00:06]} Bg4
{[%clk 00:11:51]} {[%emt 00:01:56]} 5. Nbd2 {[%clk 00:15:16]} {[%emt 00:00:14]}
Qc7 {[%clk 00:09:56]} {[%emt 00:02:04]} 6. g3 {[%clk 00:15:17]} {[%emt
00:00:09]} Nf6 {[%clk 00:08:51]} {[%emt 00:01:15]} 7. h3 {[%clk 00:14:55]}
{[%emt 00:00:32]} Bxf3 {[%clk 00:08:39]} {[%emt 00:00:23]} 8. Nxf3 {[%clk
00:15:02]} {[%emt 00:00:03]} O-O-O {[%clk 00:06:44]} {[%emt 00:02:05]} 9. Qa4
{[%clk 00:11:40]} {[%emt 00:03:32]} e6 {[%clk 00:05:33]} {[%emt 00:01:21]} 10.
Bg2 {[%clk 00:07:27]} {[%emt 00:04:23]} Bd6 {[%clk 00:05:16]} {[%emt 00:00:27]}
11. e4 {[%clk 00:06:22]} {[%emt 00:01:14]} e5 {[%clk 00:04:26]} {[%emt
00:01:01]} 12. f5 {[%clk 00:06:06]} {[%emt 00:00:26]} c4 {[%clk 00:04:03]}
{[%emt 00:00:34]} 13. Bg5 {[%clk 00:03:40]} {[%emt 00:02:34]} cxd3 {[%clk
00:02:38]} {[%emt 00:01:36]} 14. Bxf6 {[%clk 00:03:41]} {[%emt 00:00:09]} gxf6
{[%clk 00:02:41]} {[%emt 00:00:08]} 15. exd5 {[%clk 00:02:31]} {[%emt
00:01:19]} e4 {[%clk 00:02:39]} {[%emt 00:00:12]} 16. dxc6 {[%clk 00:02:27]}
{[%emt 00:00:14]} exf3 {[%clk 00:02:43]} {[%emt 00:00:06]} 17. Bxf3 {[%clk
00:02:24]} {[%emt 00:00:12]} Bxg3+ {[%clk 00:02:18]} {[%emt 00:00:36]} 18. Kd1
{[%clk 00:02:29]} {[%emt 00:00:05]} Kb8 {[%clk 00:01:49]} {[%emt 00:00:39]} 19.
Qb5 {[%clk 00:02:05]} {[%emt 00:00:34]} Rhe8 {[%clk 00:00:41]} {[%emt
00:01:17]} 20. a4 {[%clk 00:01:09]} {[%emt 00:01:06]} d2 {[%clk 00:00:26]}
{[%emt 00:00:26]} 21. Kc2 {[%clk 00:01:03]} {[%emt 00:00:16]} Re1 {[%clk
00:00:17]} {[%emt 00:00:19]} 22. Rd1 {[%clk 00:01:01]} {[%emt 00:00:11]} b6
{[%clk 00:00:17]} {[%emt 00:00:11]} 23. Qc4 {[%clk 00:00:34]} {[%emt 00:00:37]}
Re5 {[%clk 00:00:13]} {[%emt 00:00:14]} 24. Rxd2 {[%clk 00:00:18]} {[%emt
00:00:26]} Rxd2+ {[%clk 00:00:19]} {[%emt 00:00:04]} 25. Kxd2 {[%clk 00:00:27]}
{[%emt 00:00:01]} Rxf5 {[%clk 00:00:28]} 26. Rf1 {[%clk 00:00:22]} {[%emt
00:00:15]} Qf4+ {[%clk 00:00:19]} {[%emt 00:00:20]} 1/2-1/2

[Event "British Rapidplay Championship 2023"]
[Site "Mercure Bradford, Bankfield Hotel"]
[Date "2023.04.15"]
[Round "3.4"]
[White "Edwards-Wright, Miles D"]
[Black "Ashton, Adam G"]
[Result "1/2-1/2"]
[TimeControl "15 minutes plus 10 seconds per move"]
[WhiteElo "1937"]
[BlackElo "2390"]

1. b3 {[%clk 00:15:19]} {[%emt 00:00:01]} e5 {[%clk 00:14:59]} {[%emt
00:00:21]} 2. Bb2 {[%clk 00:15:28]} {[%emt 00:00:01]} Nc6 {[%clk 00:15:07]}
{[%emt 00:00:03]} 3. g3 {[%clk 00:15:36]} d5 {[%clk 00:15:05]} {[%emt
00:00:12]} 4. Bg2 {[%clk 00:15:45]} {[%emt 00:00:02]} Nf6 {[%clk 00:15:02]}
{[%emt 00:00:12]} 5. d3 {[%clk 00:15:51]} {[%emt 00:00:04]} Bc5 {[%clk
00:14:11]} {[%emt 00:01:01]} 6. h3 {[%clk 00:15:29]} {[%emt 00:00:33]} O-O
{[%clk 00:14:09]} {[%emt 00:00:11]} 7. e3 {[%clk 00:15:32]} {[%emt 00:00:07]}
a5 {[%clk 00:13:59]} {[%emt 00:00:20]} 8. a3 {[%clk 00:15:40]} {[%emt
00:00:02]} Re8 {[%clk 00:11:59]} {[%emt 00:02:10]} 9. Ne2 {[%clk 00:15:34]}
{[%emt 00:00:16]} Qe7 {[%clk 00:11:03]} {[%emt 00:01:06]} 10. Nd2 {[%clk
00:15:06]} {[%emt 00:00:37]} h6 {[%clk 00:10:17]} {[%emt 00:00:57]} 11. O-O
{[%clk 00:14:53]} {[%emt 00:00:23]} Bf5 {[%clk 00:10:11]} {[%emt 00:00:16]} 12.
Kh2 {[%clk 00:14:39]} {[%emt 00:00:24]} Rad8 {[%clk 00:09:59]} {[%emt
00:00:22]} 13. Nf3 {[%clk 00:13:12]} {[%emt 00:01:37]} Bd6 {[%clk 00:07:18]}
{[%emt 00:02:52]} 14. Re1 {[%clk 00:11:12]} {[%emt 00:02:10]} e4 {[%clk
00:06:57]} {[%emt 00:00:30]} 15. Nfd4 {[%clk 00:10:44]} {[%emt 00:00:38]} Nxd4
{[%clk 00:06:55]} {[%emt 00:00:12]} 16. Nxd4 {[%clk 00:10:34]} {[%emt
00:00:20]} Bd7 {[%clk 00:07:03]} {[%emt 00:00:02]} 17. Ne2 {[%clk 00:09:45]}
{[%emt 00:00:59]} h5 {[%clk 00:06:43]} {[%emt 00:00:30]} 18. Nf4 {[%clk
00:08:59]} {[%emt 00:00:57]} Be5 {[%clk 00:05:54]} {[%emt 00:00:59]} 19. Bxe5
{[%clk 00:08:49]} {[%emt 00:00:19]} Qxe5 {[%clk 00:06:02]} {[%emt 00:00:02]} 20.
d4 {[%clk 00:08:19]} {[%emt 00:00:41]} Qf5 {[%clk 00:06:08]} {[%emt 00:00:03]}
21. Rf1 {[%clk 00:08:04]} {[%emt 00:00:24]} Bb5 {[%clk 00:05:41]} {[%emt
00:00:38]} 22. Ne2 {[%clk 00:07:43]} {[%emt 00:00:31]} h4 {[%clk 00:05:35]}
{[%emt 00:00:15]} 23. Rc1 {[%clk 00:07:24]} {[%emt 00:00:31]} Bxe2 {[%clk
00:05:16]} {[%emt 00:00:29]} 24. Qxe2 {[%clk 00:07:28]} {[%emt 00:00:06]} Qg5
{[%clk 00:05:06]} {[%emt 00:00:20]} 25. Rg1 {[%clk 00:06:42]} {[%emt 00:00:55]}
hxg3+ {[%clk 00:04:52]} {[%emt 00:00:24]} 26. fxg3 {[%clk 00:06:50]} {[%emt
00:00:02]} g6 {[%clk 00:04:18]} {[%emt 00:00:44]} 27. Rcf1 {[%clk 00:06:46]}
{[%emt 00:00:14]} Kg7 {[%clk 00:04:22]} {[%emt 00:00:07]} 28. Rf4 {[%clk
00:06:45]} {[%emt 00:00:11]} Nh5 {[%clk 00:03:51]} {[%emt 00:00:40]} 29. Rg4
{[%clk 00:06:36]} {[%emt 00:00:19]} Qh6 {[%clk 00:03:35]} {[%emt 00:00:26]} 30.
Rh4 {[%clk 00:06:23]} {[%emt 00:00:24]} f5 {[%clk 00:03:07]} {[%emt 00:00:37]}
31. g4 {[%clk 00:04:36]} {[%emt 00:01:57]} fxg4 {[%clk 00:02:48]} {[%emt
00:00:28]} 32. Rxg4 {[%clk 00:03:44]} {[%emt 00:01:03]} Nf6 {[%clk 00:02:07]}
{[%emt 00:00:52]} 33. Rg3 {[%clk 00:03:52]} {[%emt 00:00:01]} Nh5 {[%clk
00:01:56]} {[%emt 00:00:21]} 34. Rg4 {[%clk 00:04:01]} {[%emt 00:00:01]}
1/2-1/2

[Event "British Rapidplay Championship 2023"]
[Site "Mercure Bradford, Bankfield Hotel"]
[Date "2023.04.15"]
[Round "3.5"]
[White "Pitcher, John"]
[Black "Walton, Alan J"]
[Result "1/2-1/2"]
[TimeControl "15 minutes plus 10 seconds per move"]
[WhiteElo "2358"]
[BlackElo "2105"]

1. e4 {[%clk 00:15:17]} {[%emt 00:00:03]} e6 {[%clk 00:15:18]} {[%emt
00:00:02]} 2. d3 {[%clk 00:15:22]} {[%emt 00:00:05]} d5 {[%clk 00:15:26]}
{[%emt 00:00:02]} 3. Nd2 {[%clk 00:15:30]} {[%emt 00:00:02]} Nf6 {[%clk
00:15:33]} {[%emt 00:00:03]} 4. Ngf3 {[%clk 00:15:38]} Nc6 {[%clk 00:15:39]}
{[%emt 00:00:04]} 5. c3 {[%clk 00:15:45]} {[%emt 00:00:03]} a5 {[%clk
00:15:47]} {[%emt 00:00:03]} 6. Be2 {[%clk 00:15:47]} {[%emt 00:00:07]} Bd6
{[%clk 00:14:42]} {[%emt 00:01:15]} 7. O-O {[%clk 00:15:43]} {[%emt 00:00:14]}
O-O {[%clk 00:14:49]} {[%emt 00:00:03]} 8. Re1 {[%clk 00:15:50]} {[%emt
00:00:03]} h6 {[%clk 00:14:22]} {[%emt 00:00:37]} 9. Bf1 {[%clk 00:15:57]}
{[%emt 00:00:03]} dxe4 {[%clk 00:14:18]} {[%emt 00:00:15]} 10. dxe4 {[%clk
00:16:04]} {[%emt 00:00:02]} e5 {[%clk 00:14:25]} {[%emt 00:00:04]} 11. a4
{[%clk 00:15:21]} {[%emt 00:00:53]} Bc5 {[%clk 00:14:00]} {[%emt 00:00:35]} 12.
Bb5 {[%clk 00:14:35]} {[%emt 00:00:55]} Qe7 {[%clk 00:13:13]} {[%emt 00:00:58]}
13. Qc2 {[%clk 00:14:14]} {[%emt 00:00:30]} Nd8 {[%clk 00:12:49]} {[%emt
00:00:35]} 14. Be2 {[%clk 00:12:52]} {[%emt 00:01:31]} Nc6 {[%clk 00:10:41]}
{[%emt 00:02:19]} 15. Nc4 {[%clk 00:12:27]} {[%emt 00:00:34]} b6 {[%clk
00:10:44]} {[%emt 00:00:08]} 16. Be3 {[%clk 00:12:10]} {[%emt 00:00:27]} Bg4
{[%clk 00:10:30]} {[%emt 00:00:24]} 17. Bxc5 {[%clk 00:11:16]} {[%emt
00:01:04]} Qxc5 {[%clk 00:10:37]} {[%emt 00:00:02]} 18. Ne3 {[%clk 00:11:19]}
{[%emt 00:00:07]} Rad8 {[%clk 00:10:17]} {[%emt 00:00:31]} 19. Red1 {[%clk
00:10:48]} {[%emt 00:00:40]} Be6 {[%clk 00:09:46]} {[%emt 00:00:41]} 20. Bb5
{[%clk 00:10:00]} {[%emt 00:00:58]} Na7 {[%clk 00:09:37]} {[%emt 00:00:20]} 21.
Be2 {[%clk 00:09:18]} {[%emt 00:00:52]} Nc6 {[%clk 00:09:45]} {[%emt 00:00:02]}
22. h3 {[%clk 00:09:19]} {[%emt 00:00:08]} Nh5 {[%clk 00:09:14]} {[%emt
00:00:42]} 23. Kh2 {[%clk 00:08:24]} {[%emt 00:01:04]} Nf4 {[%clk 00:08:50]}
{[%emt 00:00:34]} 24. Bf1 {[%clk 00:08:31]} {[%emt 00:00:02]} Ne7 {[%clk
00:07:34]} {[%emt 00:01:28]} 25. Rxd8 {[%clk 00:08:24]} {[%emt 00:00:17]} Rxd8
{[%clk 00:07:42]} {[%emt 00:00:02]} 26. Rd1 {[%clk 00:08:31]} {[%emt 00:00:02]}
Rxd1 {[%clk 00:07:22]} {[%emt 00:00:31]} 27. Qxd1 {[%clk 00:08:36]} {[%emt
00:00:05]} Qd6 {[%clk 00:07:26]} {[%emt 00:00:05]} 28. Qxd6 {[%clk 00:08:12]}
{[%emt 00:00:35]} cxd6 {[%clk 00:07:35]} {[%emt 00:00:02]} 29. g3 {[%clk
00:08:18]} {[%emt 00:00:02]} Nh5 {[%clk 00:07:22]} {[%emt 00:00:24]} 30. Bc4
{[%clk 00:08:24]} {[%emt 00:00:03]} Bd7 {[%clk 00:07:27]} {[%emt 00:00:05]} 31.
b3 {[%clk 00:07:15]} {[%emt 00:01:19]} Nf6 {[%clk 00:07:29]} {[%emt 00:00:09]}
32. Nd2 {[%clk 00:07:15]} {[%emt 00:00:10]} Bc6 {[%clk 00:07:18]} {[%emt
00:00:21]} 33. Bd3 {[%clk 00:06:57]} {[%emt 00:00:27]} d5 {[%clk 00:06:46]}
{[%emt 00:00:43]} 34. exd5 {[%clk 00:07:03]} {[%emt 00:00:04]} Nexd5 {[%clk
00:06:43]} {[%emt 00:00:14]} 35. Nec4 {[%clk 00:04:50]} {[%emt 00:02:22]} Nd7
{[%clk 00:06:31]} {[%emt 00:00:22]} 36. Bf5 {[%clk 00:03:15]} {[%emt 00:01:45]}
f6 {[%clk 00:05:36]} {[%emt 00:01:06]} 37. Be6+ {[%clk 00:03:22]} {[%emt
00:00:02]} Kf8 {[%clk 00:05:38]} {[%emt 00:00:08]} 38. Bxd5 {[%clk 00:03:23]}
{[%emt 00:00:09]} Bxd5 {[%clk 00:05:45]} {[%emt 00:00:04]} 39. b4 {[%clk
00:03:31]} {[%emt 00:00:01]} axb4 {[%clk 00:05:46]} {[%emt 00:00:09]} 40. cxb4
{[%clk 00:03:38]} {[%emt 00:00:02]} Ke7 {[%clk 00:05:38]} {[%emt 00:00:18]} 41.
g4 {[%clk 00:03:32]} {[%emt 00:00:16]} Ke6 {[%clk 00:05:23]} {[%emt 00:00:26]}
42. Kg3 {[%clk 00:03:12]} {[%emt 00:00:29]} Bc6 {[%clk 00:05:00]} {[%emt
00:00:34]} 43. a5 {[%clk 00:03:06]} {[%emt 00:00:16]} bxa5 {[%clk 00:05:08]}
{[%emt 00:00:02]} 44. bxa5 {[%clk 00:03:09]} {[%emt 00:00:06]} Nc5 {[%clk
00:05:12]} {[%emt 00:00:06]} 45. h4 {[%clk 00:02:16]} {[%emt 00:01:03]} Bb5
{[%clk 00:04:49]} {[%emt 00:00:34]} 46. Ne3 {[%clk 00:01:57]} {[%emt 00:00:29]}
Bd3 {[%clk 00:04:43]} {[%emt 00:00:17]} 47. h5 {[%clk 00:01:26]} {[%emt
00:00:40]} Kd7 {[%clk 00:03:34]} {[%emt 00:01:20]} 48. f4 {[%clk 00:01:06]}
{[%emt 00:00:29]} exf4+ {[%clk 00:03:19]} {[%emt 00:00:25]} 49. Kxf4 {[%clk
00:01:14]} {[%emt 00:00:01]} Ne6+ {[%clk 00:03:28]} {[%emt 00:00:02]} 50. Kf3
{[%clk 00:01:15]} {[%emt 00:00:08]} Kc6 {[%clk 00:03:23]} {[%emt 00:00:16]} 51.
Nd1 {[%clk 00:00:37]} {[%emt 00:00:48]} Bc2 {[%clk 00:03:16]} {[%emt 00:00:18]}
1/2-1/2

[Event "British Rapidplay Championship 2023"]
[Site "Mercure Bradford, Bankfield Hotel"]
[Date "2023.04.15"]
[Round "3.6"]
[White "Senior, Gary"]
[Black "Dong, Bao Nghia"]
[Result "0-1"]
[TimeControl "15 minutes plus 10 seconds per move"]
[WhiteElo "1911"]
[BlackElo "2331"]

1. e4 {[%clk 00:15:18]} e6 {[%clk 00:15:18]} {[%emt 00:00:02]} 2. d4 {[%clk
00:15:27]} {[%emt 00:00:02]} d5 {[%clk 00:15:27]} {[%emt 00:00:02]} 3. Nd2
{[%clk 00:15:34]} {[%emt 00:00:02]} c5 {[%clk 00:15:36]} {[%emt 00:00:01]} 4.
Ngf3 {[%clk 00:15:38]} {[%emt 00:00:06]} cxd4 {[%clk 00:15:44]} {[%emt
00:00:02]} 5. Nxd4 {[%clk 00:15:40]} {[%emt 00:00:07]} Nc6 {[%clk 00:15:52]}
{[%emt 00:00:02]} 6. Bb5 {[%clk 00:15:37]} {[%emt 00:00:13]} Bd7 {[%clk
00:16:01]} {[%emt 00:00:02]} 7. Nxc6 {[%clk 00:15:42]} {[%emt 00:00:05]} bxc6
{[%clk 00:16:08]} {[%emt 00:00:03]} 8. Bd3 {[%clk 00:15:49]} {[%emt 00:00:03]}
Bd6 {[%clk 00:16:16]} {[%emt 00:00:02]} 9. Qe2 {[%clk 00:15:37]} {[%emt
00:00:22]} e5 {[%clk 00:16:24]} {[%emt 00:00:03]} 10. O-O {[%clk 00:14:57]}
{[%emt 00:00:49]} Qe7 {[%clk 00:16:31]} {[%emt 00:00:02]} 11. Re1 {[%clk
00:13:35]} {[%emt 00:01:32]} Nf6 {[%clk 00:16:30]} {[%emt 00:00:11]} 12. h3
{[%clk 00:13:04]} {[%emt 00:00:42]} O-O {[%clk 00:16:29]} {[%emt 00:00:11]} 13.
f4 {[%clk 00:12:07]} {[%emt 00:01:06]} Bc5+ {[%clk 00:16:15]} {[%emt 00:00:25]}
14. Kh1 {[%clk 00:12:12]} {[%emt 00:00:04]} exf4 {[%clk 00:14:36]} {[%emt
00:01:50]} 15. e5 {[%clk 00:12:17]} {[%emt 00:00:04]} Ng4 {[%clk 00:14:35]}
{[%emt 00:00:12]} 16. Nb3 {[%clk 00:10:52]} {[%emt 00:01:35]} Nf2+ {[%clk
00:12:47]} {[%emt 00:01:58]} 17. Kh2 {[%clk 00:10:54]} {[%emt 00:00:08]} Ng4+
{[%clk 00:07:19]} {[%emt 00:05:39]} 18. Kh1 {[%clk 00:10:58]} {[%emt 00:00:05]}
Be3 {[%clk 00:07:27]} {[%emt 00:00:02]} 19. Bxe3 {[%clk 00:04:47]} {[%emt
00:06:21]} Nxe3 {[%clk 00:07:35]} {[%emt 00:00:02]} 20. Qh5 {[%clk 00:04:33]}
{[%emt 00:00:24]} g6 {[%clk 00:07:36]} {[%emt 00:00:09]} 21. Qh6 {[%clk
00:04:35]} {[%emt 00:00:08]} Qxe5 {[%clk 00:07:34]} {[%emt 00:00:12]} 22. Nc5
{[%clk 00:04:27]} {[%emt 00:00:18]} Bf5 {[%clk 00:07:29]} {[%emt 00:00:15]} 23.
Re2 {[%clk 00:03:19]} {[%emt 00:01:18]} Qd6 {[%clk 00:06:54]} {[%emt 00:00:44]}
24. b4 {[%clk 00:02:53]} {[%emt 00:00:37]} Bxd3 {[%clk 00:07:02]} {[%emt
00:00:03]} 25. Nxd3 {[%clk 00:02:55]} {[%emt 00:00:07]} Nf5 {[%clk 00:07:10]}
{[%emt 00:00:02]} 0-1

[Event "British Rapidplay Championship 2023"]
[Site "Mercure Bradford, Bankfield Hotel"]
[Date "2023.04.15"]
[Round "3.7"]
[White "Bak, Andrew"]
[Black "Makkar, Rajat"]
[Result "0-1"]
[TimeControl "15 minutes plus 10 seconds per move"]
[WhiteElo "1959"]
[BlackElo "2297"]

1. e4 {[%clk 00:15:18]} {[%emt 00:00:02]} c5 {[%clk 00:15:18]} {[%emt
00:00:02]} 2. Nf3 {[%clk 00:15:26]} {[%emt 00:00:02]} d6 {[%clk 00:15:25]}
{[%emt 00:00:04]} 3. d4 {[%clk 00:15:34]} {[%emt 00:00:02]} cxd4 {[%clk
00:15:34]} {[%emt 00:00:01]} 4. Nxd4 {[%clk 00:15:42]} {[%emt 00:00:01]} Nf6
{[%clk 00:15:43]} {[%emt 00:00:02]} 5. Nc3 {[%clk 00:15:50]} {[%emt 00:00:02]}
Nc6 {[%clk 00:15:52]} {[%emt 00:00:01]} 6. Bg5 {[%clk 00:15:54]} {[%emt
00:00:05]} e6 {[%clk 00:16:00]} {[%emt 00:00:02]} 7. Qd2 {[%clk 00:16:00]}
{[%emt 00:00:04]} a6 {[%clk 00:16:07]} {[%emt 00:00:04]} 8. O-O-O {[%clk
00:15:57]} {[%emt 00:00:12]} Bd7 {[%clk 00:16:06]} {[%emt 00:00:11]} 9. f4
{[%clk 00:15:59]} {[%emt 00:00:07]} Be7 {[%clk 00:16:03]} {[%emt 00:00:13]} 10.
Be2 {[%clk 00:14:58]} {[%emt 00:01:10]} b5 {[%clk 00:15:50]} {[%emt 00:00:24]}
11. Nxc6 {[%clk 00:14:12]} {[%emt 00:00:56]} Bxc6 {[%clk 00:15:58]} {[%emt
00:00:02]} 12. Qe3 {[%clk 00:12:09]} {[%emt 00:02:13]} b4 {[%clk 00:15:12]}
{[%emt 00:00:56]} 13. Bxf6 {[%clk 00:12:07]} {[%emt 00:00:12]} gxf6 {[%clk
00:14:48]} {[%emt 00:00:33]} 14. Nb1 {[%clk 00:08:22]} {[%emt 00:03:55]} Qa5
{[%clk 00:14:47]} {[%emt 00:00:11]} 15. a3 {[%clk 00:07:38]} {[%emt 00:00:55]}
Rc8 {[%clk 00:12:55]} {[%emt 00:02:02]} 16. axb4 {[%clk 00:06:50]} {[%emt
00:00:58]} Qxb4 {[%clk 00:13:04]} {[%emt 00:00:01]} 17. Qd4 {[%clk 00:03:30]}
{[%emt 00:03:29]} Bxe4 {[%clk 00:12:49]} {[%emt 00:00:26]} 18. Nc3 {[%clk
00:02:43]} {[%emt 00:00:57]} Qxd4 {[%clk 00:12:47]} {[%emt 00:00:12]} 19. Rxd4
{[%clk 00:02:51]} {[%emt 00:00:01]} Bxg2 {[%clk 00:12:31]} {[%emt 00:00:26]} 20.
Rg1 {[%clk 00:02:28]} {[%emt 00:00:33]} Bb7 {[%clk 00:12:37]} {[%emt 00:00:05]}
21. Rb4 {[%clk 00:02:37]} Rc7 {[%clk 00:12:14]} {[%emt 00:00:34]} 22. Rb3
{[%clk 00:01:34]} {[%emt 00:01:12]} d5 {[%clk 00:11:36]} {[%emt 00:00:47]} 23.
Bh5 {[%clk 00:01:23]} {[%emt 00:00:21]} Kf8 {[%clk 00:10:12]} {[%emt 00:01:35]}
24. Ne2 {[%clk 00:00:57]} {[%emt 00:00:36]} Bc5 {[%clk 00:10:13]} {[%emt
00:00:09]} 25. Rd1 {[%clk 00:00:36]} {[%emt 00:00:30]} Rg8 {[%clk 00:10:14]}
{[%emt 00:00:09]} 26. Ng3 {[%clk 00:00:44]} {[%emt 00:00:03]} Ke7 {[%clk
00:09:58]} {[%emt 00:00:26]} 27. Bf3 {[%clk 00:00:43]} {[%emt 00:00:10]} a5
{[%clk 00:09:32]} {[%emt 00:00:36]} 28. f5 {[%clk 00:00:28]} {[%emt 00:00:26]}
a4 {[%clk 00:09:36]} {[%emt 00:00:06]} 29. Rc3 {[%clk 00:00:29]} {[%emt
00:00:09]} Bd6 {[%clk 00:09:25]} {[%emt 00:00:22]} 30. Rxc7+ {[%clk 00:00:29]}
{[%emt 00:00:09]} Bxc7 {[%clk 00:09:33]} {[%emt 00:00:01]} 31. Rd4 {[%clk
00:00:17]} {[%emt 00:00:22]} Bxg3 {[%clk 00:09:34]} {[%emt 00:00:10]} 32. hxg3
{[%clk 00:00:24]} {[%emt 00:00:02]} Rxg3 {[%clk 00:09:43]} {[%emt 00:00:01]} 33.
Be2 {[%clk 00:00:15]} {[%emt 00:00:19]} Bc6 {[%clk 00:09:42]} {[%emt 00:00:10]}
34. Rh4 {[%clk 00:00:13]} {[%emt 00:00:12]} Rg2 {[%clk 00:09:01]} {[%emt
00:00:51]} 35. Bd3 {[%clk 00:00:14]} {[%emt 00:00:09]} e5 {[%clk 00:09:10]}
{[%emt 00:00:01]} 36. Rxh7 {[%clk 00:00:19]} {[%emt 00:00:05]} e4 {[%clk
00:09:17]} {[%emt 00:00:03]} 37. Ba6 {[%clk 00:00:25]} {[%emt 00:00:04]} Rg5
{[%clk 00:08:39]} {[%emt 00:00:48]} 38. Bc8 {[%clk 00:00:20]} {[%emt 00:00:15]}
e3 {[%clk 00:08:05]} {[%emt 00:00:44]} 39. Rh3 {[%clk 00:00:15]} {[%emt
00:00:14]} Rg1# {[%clk 00:08:13]} {[%emt 00:00:03]} 0-1

[Event "British Rapidplay Championship 2023"]
[Site "Mercure Bradford, Bankfield Hotel"]
[Date "2023.04.15"]
[Round "3.8"]
[White "Ismail, Mohammed Aayan"]
[Black "Hryshchenko, Kamila"]
[Result "1-0"]
[TimeControl "15 minutes plus 10 seconds per move"]
[WhiteElo "2269"]
[BlackElo "2019"]

1. Nf3 {[%clk 00:15:19]} {[%emt 00:01:56]} d6 {[%clk 00:15:17]} {[%emt
00:00:03]} 2. d4 {[%clk 00:15:17]} {[%emt 00:00:12]} Nf6 {[%clk 00:15:24]}
{[%emt 00:00:04]} 3. g3 {[%clk 00:15:26]} {[%emt 00:00:02]} g6 {[%clk
00:15:31]} {[%emt 00:00:03]} 4. Bg2 {[%clk 00:15:35]} {[%emt 00:00:01]} Bg7
{[%clk 00:15:39]} {[%emt 00:00:01]} 5. O-O {[%clk 00:15:42]} {[%emt 00:00:03]}
O-O {[%clk 00:15:47]} {[%emt 00:00:02]} 6. Re1 {[%clk 00:14:32]} {[%emt
00:01:21]} Nbd7 {[%clk 00:15:27]} {[%emt 00:00:29]} 7. e4 {[%clk 00:14:39]}
{[%emt 00:00:03]} e5 {[%clk 00:15:08]} {[%emt 00:00:29]} 8. c3 {[%clk
00:14:34]} {[%emt 00:00:16]} Qe7 {[%clk 00:14:12]} {[%emt 00:01:06]} 9. Nbd2
{[%clk 00:14:01]} {[%emt 00:00:42]} Rd8 {[%clk 00:13:52]} {[%emt 00:00:31]} 10.
Qc2 {[%clk 00:13:58]} {[%emt 00:00:13]} c6 {[%clk 00:13:58]} {[%emt 00:00:04]}
11. a4 {[%clk 00:12:37]} {[%emt 00:01:31]} b6 {[%clk 00:13:40]} {[%emt
00:00:28]} 12. a5 {[%clk 00:10:38]} {[%emt 00:02:09]} Ba6 {[%clk 00:10:46]}
{[%emt 00:03:03]} 13. b4 {[%clk 00:09:48]} {[%emt 00:01:01]} Rdc8 {[%clk
00:09:42]} {[%emt 00:01:13]} 14. Ba3 {[%clk 00:07:16]} {[%emt 00:02:42]} b5
{[%clk 00:07:39]} {[%emt 00:02:13]} 15. Nb3 {[%clk 00:06:51]} {[%emt 00:00:35]}
Re8 {[%clk 00:07:14]} {[%emt 00:00:35]} 16. Rad1 {[%clk 00:06:11]} {[%emt
00:00:49]} exd4 {[%clk 00:06:52]} {[%emt 00:00:32]} 17. cxd4 {[%clk 00:05:38]}
{[%emt 00:00:43]} Rac8 {[%clk 00:06:27]} {[%emt 00:00:35]} 18. e5 {[%clk
00:04:35]} {[%emt 00:01:13]} Nd5 {[%clk 00:06:28]} {[%emt 00:00:10]} 19. Bh3
{[%clk 00:03:48]} {[%emt 00:00:57]} dxe5 {[%clk 00:02:53]} {[%emt 00:03:45]} 20.
dxe5 {[%clk 00:03:02]} {[%emt 00:00:56]} Nb8 {[%clk 00:00:30]} {[%emt
00:02:32]} 21. Nc5 {[%clk 00:02:09]} {[%emt 00:01:04]} Rc7 {[%clk 00:00:34]}
{[%emt 00:00:06]} 22. e6 {[%clk 00:01:28]} {[%emt 00:00:52]} f6 {[%clk
00:00:15]} {[%emt 00:00:29]} 23. Nd4 {[%clk 00:01:30]} {[%emt 00:00:08]} Bc8
{[%clk 00:00:24]} {[%emt 00:00:01]} 24. Nxb5 {[%clk 00:01:18]} {[%emt
00:00:22]} Nxb4 {[%clk 00:00:28]} {[%emt 00:00:06]} 25. Bxb4 {[%clk 00:01:20]}
{[%emt 00:00:08]} cxb5 {[%clk 00:00:37]} {[%emt 00:00:02]} 26. Rc1 {[%clk
00:00:42]} {[%emt 00:00:48]} f5 {[%clk 00:00:45]} {[%emt 00:00:02]} 27. Qb3
{[%clk 00:00:43]} {[%emt 00:00:09]} Kh8 {[%clk 00:00:48]} {[%emt 00:00:06]} 28.
Nd7 {[%clk 00:00:33]} {[%emt 00:00:20]} Rxc1 {[%clk 00:00:55]} {[%emt
00:00:03]} 29. Rxc1 {[%clk 00:00:42]} {[%emt 00:00:01]} Qg5 {[%clk 00:00:37]}
{[%emt 00:00:28]} 30. f4 {[%clk 00:00:35]} {[%emt 00:00:17]} Qh5 {[%clk
00:00:46]} 31. Bg2 {[%clk 00:00:16]} {[%emt 00:00:29]} Nxd7 {[%clk 00:00:37]}
{[%emt 00:00:19]} 32. exd7 {[%clk 00:00:20]} {[%emt 00:00:07]} Bxd7 {[%clk
00:00:45]} {[%emt 00:00:02]} 33. Qf7 {[%clk 00:00:23]} {[%emt 00:00:07]} Rd8
{[%clk 00:00:18]} {[%emt 00:00:37]} 34. Qe7 {[%clk 00:00:17]} {[%emt 00:00:15]}
Bd4+ {[%clk 00:00:16]} {[%emt 00:00:12]} 35. Kh1 {[%clk 00:00:26]} Re8 {[%clk
00:00:12]} {[%emt 00:00:14]} 36. Qxd7 {[%clk 00:00:35]} {[%emt 00:00:01]} Rb8
{[%clk 00:00:00]} {[%emt 00:00:07]} 1-0